bitfinex-derivatives/quotes_SOLF0:USTF0_20251020
["timestamp","ask_amount","ask_price","bid_price","bid_amount"]
[1760983641878,2.89,188.09,188.03,7.7154]
[1760983643889,2.89,188.09,188.03,2.93]
[1760983646891,2.89,188.08,188.01,2.93]
[1760983647989,2.89,188.08,188.01,4.7859]
[1760983648187,2.89,188.08,187.93,17.96551406]
[1760983648188,2.89,188.08,188.02,2.77]
[1760983648592,3.57565501,188.11,188.04,7.555]
[1760983649084,2.65,188.11,188.05,2.77]
[1760983649991,7.433,188.13,188.07,2.77]
[1760983650490,2.65,188.13,188.07,2.77]
[1760983651280,2.65,188.25,188.03,2.77]
[1760983651485,2.65,188.22,188.03,2.77]
[1760983651687,2.65,188.19,188.09,4.7837]
[1760983651882,2.65,188.19,188.08,2.77]
[1760983652390,2.65,188.15,188.08,7.554]
[1760983652591,2.65,188.15,188.08,2.77]
[1760983654587,7.4318,188.18,188.11,2.77]
[1760983654979,2.65,188.17,188.11,2.77]
[1760983655387,2.65,188.17,188.02,66.88980004]
[1760983655388,2.65,188.17,188.08,2.77]
[1760983656090,2.65,188.17,188.1,7.5536]
[1760983657192,7.432,188.17,188.1,7.5536]
[1760983657586,2.65,188.16,188.08,7.5541]
[1760983657888,7.4323,188.16,188.08,7.5541]
[1760983658392,7.4323,188.16,188.09,7.5539]
[1760983660487,2.65,188.15,188.09,7.5539]
[1760983661798,7.4326,188.15,188.09,2.77]
[1760983662192,2.65,188.14,188.09,2.77]
[1760983662596,2.65,188.14,188.09,7.5539]
[1760983664687,2.65,188.13,188.07,4.7844]
[1760983665291,2.65,188.13,188.07,7.5544]
[1760983667598,2.65,188.13,188.08,7.5541]
[1760983668104,2.65,188.13,188.09,2.77]
[1760983668295,2.65,188.13,188.06,7.5546]
[1760983668897,2.65,188.13,188.06,2.77]
[1760983669198,2.65,188.12,188.06,2.77]
[1760983669602,2.65,188.12,188.03,2.77]
[1760983670807,2.65,188.12,188.06,4.7846]
[1760983671101,2.65,188.15,188.07,2.77]
[1760983672103,2.65,188.15,188.1,2.77]
[1760983672998,3.57512594,188.19,188.12,2.77]
[1760983673202,2.65,188.18,188.12,2.77]
[1760983674602,4.78,188.25,188.15,2.72]
[1760983674900,0.92502758,188.22,188.11,2.72]
[1760983675106,2.91,188.19,188.11,2.72]
[1760983676016,7.6916,188.19,188.12,2.72]
[1760983676509,2.91,188.19,188.13,2.72]
[1760983676899,2.91,188.21,188.13,2.72]
[1760983677504,2.67,188.24,188.16,2.76]
[1760983678006,2.67,188.23,188.12,2.76]
[1760983679605,4.7805,188.23,188.15,4.7823]
[1760983679802,2.67,188.22,188.15,4.7823]
[1760983680404,2.67,188.24,188.11,2.76]
[1760983680806,6.0618891,188.25,188.11,7.5433]
[1760983680807,2.67,188.18,188.11,7.5433]
[1760983688611,4.7817,188.18,188.11,7.5433]
[1760983688807,2.67,188.17,188.11,7.5433]
[1760983690811,7.452,188.17,188.11,7.5433]
[1760983692715,2.67,188.16,188.08,4.88980004]
[1760983692908,2.67,188.16,188.09,2.76]
[1760983693108,2.67,188.16,188.1,4.7836]
[1760983693309,7.4523,188.16,188.1,2.76]
[1760983693506,2.67,188.15,188.1,2.76]
[1760983699723,2.76,188.14,188.1,2.76]
[1760983700323,2.76,188.14,188.09,4.88980004]
[1760983700617,2.76,188.14,188.08,9.67390004]
[1760983700618,2.76,188.13,188.08,9.67390004]
[1760983700821,2.76,188.13,188.08,12.38390004]
[1760983701024,2.76,188.13,188.07,4.88980004]
[1760983701214,5.13698445,188.18,188.05,4.88980004]
[1760983701215,2.76,188.1,188.05,4.88980004]
[1760983701417,2.76,188.1,188.05,7.59980004]
[1760983701618,2.76,188.1,188.05,2.71]
[1760983702118,2.76,188.16,188.04,4.88980004]
[1760983702826,2.76,188.08,188.04,4.88980004]
[1760983703224,2.76,188.06,188.03,4.88980004]
[1760983703425,2.76,188.06,188.02,4.88980004]
[1760983704913,2.76,188.13,188.0,4.88980004]
[1760983705318,7.5451,188.05,188.01,2.71]
[1760983705728,2.76,188.04,188.01,2.71]
[1760983706121,7.5446,188.07,188.01,7.59980004]
[1760983706323,7.5446,188.07,188.01,2.71]
[1760983707219,44.5,188.12,188.02,2.91]
[1760983707425,2.78,188.11,188.02,2.91]
[1760983707629,2.78,188.11,188.03,2.91]
[1760983707825,2.78,188.11,188.03,4.88980004]
[1760983708021,2.78,188.11,188.04,2.91]
[1760983708223,4.7828,188.14,188.06,2.91]
[1760983708527,2.78,188.15,188.06,2.91]
[1760983708729,44.5,188.18,188.06,2.91]
[1760983708730,2.78,188.12,188.06,2.91]
[1760983709226,7.5633,188.12,188.06,2.91]
[1760983709430,2.78,188.11,188.06,2.91]
[1760983710423,4.7828,188.14,188.06,2.91]
[1760983710624,7.5628,188.14,188.06,2.91]
[1760983711730,2.78,188.13,188.06,2.91]
[1760983712921,4.7833,188.12,188.06,2.91]
[1760983713325,7.5633,188.12,188.06,2.91]
[1760983713719,2.78,188.12,188.06,2.91]
[1760983715231,2.78,188.15,188.07,2.91]
[1760983716030,47.28,188.18,188.09,2.91]
[1760983716424,2.78,188.17,188.09,2.91]
[1760983717022,7.562,188.17,188.09,7.6938]
[1760983717224,7.562,188.17,188.1,2.91]
[1760983719035,2.78,188.15,188.08,5.13698445]
[1760983720033,2.78,188.15,188.08,8.04698445]
[1760983721938,2.78,188.15,188.08,2.91]
[1760983722134,2.78,188.14,188.08,2.91]
[1760983723929,7.5628,188.14,188.08,2.91]
[1760983724133,2.78,188.13,188.08,2.91]
[1760983724336,2.78,188.13,188.02,4.88980004]
[1760983724735,7.5643,188.08,188.02,4.88980004]
[1760983725040,7.5643,188.08,188.02,7.79980004]
[1760983725346,2.78,188.08,188.02,7.79980004]
[1760983726641,7.5643,188.08,188.02,7.79980004]
[1760983727540,7.5643,188.08,188.02,2.91]
[1760983728231,44.48,188.1,188.01,4.88980004]
[1760983728442,2.78,188.09,188.01,4.88980004]
[1760983729238,7.5648,188.06,188.02,2.91]
[1760983730342,2.78,188.05,188.01,7.79980004]
[1760983730745,7.565,188.05,188.01,4.88980004]
[1760983730953,2.78,188.04,188.01,4.88980004]
[1760983731252,4.7845,188.07,188.02,2.91]
[1760983731437,7.5645,188.07,188.02,2.91]
[1760983731642,2.78,188.06,188.02,2.91]
[1760983732339,7.5648,188.06,188.02,2.91]
[1760983732950,4.7848,188.06,188.02,2.91]
[1760983733152,7.5648,188.06,188.02,2.91]
[1760983734354,7.5648,188.06,188.02,7.79980004]
[1760983734743,2.78,188.05,188.02,2.91]
[1760983735048,2.78,188.05,188.01,4.88980004]
[1760983735346,2.78,188.05,188.02,4.88980004]
[1760983737750,2.78,188.05,188.02,7.80980004]
[1760983739550,4.785,188.05,188.02,4.88980004]
[1760983739852,2.92,188.04,188.0,7.80980004]
[1760983740250,2.92,188.04,188.01,2.92]
[1760983740452,7.7053,188.04,188.01,2.92]
[1760983741158,7.7048,188.06,188.02,2.92]
[1760983741547,2.92,188.06,188.02,2.92]
[1760983743055,7.705,188.05,188.02,2.92]
[1760983744162,4.7841,188.09,188.04,2.92]
[1760983744454,4.7841,188.09,188.05,2.92]
[1760983745045,4.7835,188.11,188.05,2.92]
[1760983745458,7.7035,188.11,188.05,2.92]
[1760983747760,4.7837,188.1,188.05,2.92]
[1760983747965,2.92,188.09,188.05,2.92]
[1760983754467,4.7837,188.1,188.05,2.92]
[1760983754765,2.78,188.09,188.05,2.92]
[1760983755269,4.7843,188.08,188.04,4.91578475]
[1760983755461,2.78,188.08,188.03,4.91578475]
[1760983755766,2.78,188.08,188.03,7.67578475]
[1760983755963,2.78,188.08,188.04,2.76]
[1760983756166,7.5645,188.07,188.04,2.76]
[1760983756465,2.78,188.06,188.03,4.91578475]
[1760983757363,44.48,188.14,188.04,2.76]
[1760983757556,2.78,188.13,188.06,2.76]
[1760983757756,2.78,188.13,188.07,2.76]
[1760983758354,2.78,188.17,188.07,7.67578475]
[1760983758567,2.78,188.17,188.09,2.76]
[1760983759666,2.78,188.17,188.1,2.76]
[1760983760769,2.78,188.17,188.12,2.76]
[1760983760975,44.48,188.2,188.13,2.76]
[1760983761272,44.48,188.2,188.14,2.76]
[1760983761866,0.92490465,188.25,188.14,2.76]
[1760983762066,3.70490465,188.25,188.16,2.76]
[1760983762266,3.70490465,188.25,188.17,2.76]
[1760983762863,3.70490465,188.25,188.16,4.91578475]
[1760983762864,2.78,188.25,188.18,2.76]
[1760983765476,7.56,188.25,188.18,2.76]
[1760983765968,2.78,188.25,188.18,2.76]
[1760983766872,2.78,188.24,188.18,2.76]
[1760983768178,5.70425718,188.27,188.18,2.76]
[1760983768965,5.70425718,188.27,188.19,2.65]
[1760983769779,47.24,188.28,188.17,2.65]
[1760983770369,52.0192,188.28,188.21,2.65]
[1760983773075,7.5592,188.28,188.21,2.65]
[1760983774086,7.5592,188.28,188.22,2.65]
[1760983774978,2.78,188.26,188.19,7.4312]
[1760983775178,2.78,188.26,188.2,2.65]
[1760983775481,7.5597,188.26,188.2,2.65]
[1760983775682,2.78,188.26,188.2,7.431]
[1760983775877,2.78,188.26,188.17,2.65]
[1760983776084,2.78,188.31,188.17,2.65]
[1760983776778,2.78,188.23,188.12,2.65]
[1760983777175,2.78,188.22,188.14,2.65]
[1760983778189,2.78,188.21,188.14,2.65]
[1760983779994,2.78,188.21,188.14,7.4325]
[1760983780198,2.78,188.2,188.14,7.4325]
[1760983781294,2.78,188.2,188.14,2.65]
[1760983782999,2.78,188.2,188.14,7.4325]
[1760983783197,2.78,188.23,188.09,2.65]
[1760983783490,2.78,188.23,188.06,2.65]
[1760983783892,44.44,188.24,188.07,2.65]
[1760983783893,2.78,188.22,188.07,2.65]
[1760983784595,2.78,188.22,188.08,4.86256179]
[1760983784893,2.78,188.22,188.1,2.65]
[1760983785090,2.78,188.22,188.12,2.65]
[1760983786098,7.5616,188.19,188.12,2.65]
[1760983787197,2.78,188.18,188.12,2.65]
[1760983787403,2.78,188.18,188.09,7.4338]
[1760983787598,2.78,188.18,188.1,4.86364201]
[1760983787798,2.78,188.17,188.11,4.86364201]
[1760983788000,2.78,188.17,188.1,2.65]
[1760983788208,2.78,188.17,188.11,4.86581279]
[1760983788400,2.78,188.17,188.1,2.65]
[1760983788606,2.78,188.17,188.11,4.86581279]
[1760983788805,2.78,188.17,188.1,2.65]
[1760983789006,2.78,188.22,188.06,2.65]
[1760983789209,2.78,188.22,188.08,2.65]
[1760983789509,2.78,188.22,188.09,7.51703468]
[1760983789708,2.78,188.21,188.1,2.65]
[1760983790907,2.78,188.14,188.1,2.65]
[1760983795115,7.562,188.17,188.11,4.87176345]
[1760983795311,7.562,188.17,188.11,2.65]
[1760983795511,2.78,188.16,188.11,2.65]
[1760983795716,4.7823,188.16,188.11,2.65]
[1760983795919,2.78,188.15,188.11,2.65]
[1760983797409,4.7823,188.16,188.11,2.65]
[1760983797806,7.5923,188.16,188.11,2.65]
[1760983798018,2.81,188.15,188.11,2.65]
[1760983798218,2.81,188.15,188.12,7.57462069]
[1760983798419,2.81,188.15,188.12,2.7]
[1760983800114,7.5918,188.18,188.14,2.7]
[1760983801116,4.7812,188.2,188.15,4.87614356]
[1760983801318,44.44,188.26,188.16,7.57534974]
[1760983801523,2.81,188.25,188.17,4.87534974]
[1760983801724,2.81,188.25,188.16,2.7]
[1760983801923,2.81,188.25,188.17,4.874728]
[1760983802115,2.81,188.25,188.16,2.7]
[1760983802317,2.81,188.25,188.17,4.87685879]
[1760983802518,4.7809,188.21,188.16,2.7]
[1760983802824,2.81,188.2,188.17,4.8768609]
[1760983803124,2.81,188.2,188.16,2.7]
[1760983803423,2.81,188.2,188.17,4.87877021]
[1760983803624,2.81,188.2,188.16,2.7]
[1760983803816,2.81,188.2,188.17,4.87876726]
[1760983804021,2.81,188.2,188.16,2.7]
[1760983804223,2.81,188.2,188.17,4.87876424]
[1760983804419,2.81,188.2,188.16,2.7]
[1760983804620,2.81,188.2,188.17,7.57910692]
[1760983804822,44.44,188.26,188.18,7.57910692]
[1760983804823,7.5902,188.24,188.18,7.57910692]
[1760983805119,7.5902,188.24,188.19,7.57910692]
[1760983805120,2.81,188.23,188.19,7.57910692]
[1760983805424,2.81,188.22,188.16,2.7]
[1760983805722,2.81,188.22,188.17,4.87770963]
[1760983805925,2.81,188.22,188.18,4.87770963]
[1760983806228,2.81,188.22,188.19,4.87770963]
[1760983806421,2.81,188.22,188.16,2.7]
[1760983806620,2.81,188.22,188.17,4.8775891]
[1760983806823,2.81,188.22,188.18,4.8775891]
[1760983807124,2.81,188.21,188.19,4.8775891]
[1760983807325,2.81,188.21,188.16,2.7]
[1760983807515,2.81,188.21,188.17,4.87763811]
[1760983807718,2.81,188.21,188.16,2.7]
[1760983807719,2.81,188.21,188.18,4.87763811]
[1760983807919,2.81,188.2,188.19,4.87763811]
[1760983808139,2.81,188.2,188.13,2.7]
[1760983808430,2.81,188.2,188.14,4.87950371]
[1760983808622,2.81,188.19,188.15,4.87950371]
[1760983808819,2.81,188.19,188.16,4.87950371]
[1760983809020,2.81,188.19,188.12,2.7]
[1760983809323,2.81,188.19,188.11,4.89074952]
[1760983809324,2.81,188.19,188.13,7.58283464]
[1760983809529,2.81,188.19,188.15,2.7]
[1760983809731,2.81,188.19,188.16,4.88283464]
[1760983810026,2.81,188.16,188.12,2.7]
[1760983810232,2.81,188.16,188.13,4.88536576]
[1760983810434,2.81,188.16,188.14,4.88536576]
[1760983810727,2.81,188.16,188.15,4.88536576]
[1760983810927,2.81,188.16,188.13,4.88536576]
[1760983811129,2.81,188.16,188.14,4.88536576]
[1760983811325,2.81,188.16,188.15,4.88536576]
[1760983812529,2.81,188.16,188.09,7.59074952]
[1760983812530,7.5923,188.16,188.09,7.59074952]
[1760983812932,7.5923,188.16,188.1,2.7]
[1760983813832,2.81,188.15,188.07,7.59074952]
[1760983814030,2.81,188.15,188.07,2.7]
[1760983814329,4.7825,188.15,188.08,2.93]
[1760983814834,4.782,188.17,188.1,2.93]
[1760983815134,4.782,188.17,188.11,2.93]
[1760983815333,7.632,188.17,188.11,2.93]
[1760983816617,4.7822,188.16,188.11,2.93]
[1760983816820,7.6322,188.16,188.11,2.93]
[1760983817826,2.85,188.15,188.11,2.93]
[1760983818129,7.6325,188.15,188.11,2.93]
[1760983818325,9.5592,188.26,188.12,5.13691526]
[1760983818326,2.85,188.26,188.12,5.13691526]
[1760983818529,2.85,188.26,188.09,4.89074952]
[1760983818530,2.85,188.31,188.22,5.13691526]
[1760983818719,2.85,188.31,188.23,2.93]
[1760983819231,4.7788,188.3,188.23,2.93]
[1760983819430,7.6288,188.3,188.23,2.93]
[1760983819631,2.85,188.3,188.23,2.93]
[1760983820428,7.6289,188.29,188.23,2.93]
[1760983821320,2.85,188.28,188.23,2.93]
[1760983821724,4.7789,188.29,188.23,2.93]
[1760983822631,7.6289,188.29,188.23,2.93]
[1760983823632,2.85,188.28,188.21,4.7807]
[1760983823840,2.85,188.28,188.21,2.93]
[1760983824927,2.85,188.27,188.21,2.93]
[1760983832438,7.6295,188.27,188.21,2.93]
[1760983833543,2.82,188.26,188.21,2.93]
[1760983833843,2.82,188.25,188.21,2.93]
[1760983834748,2.82,188.31,188.21,2.93]
[1760983836054,7.5994,188.27,188.21,2.93]
[1760983837756,2.82,188.25,188.21,2.93]
[1760983842446,53.9752,188.34,188.21,7.7109]
[1760983842642,2.82,188.28,188.22,2.67]
[1760983842836,44.4,188.31,188.22,2.67]
[1760983842837,2.82,188.31,188.22,2.67]
[1760983843133,2.82,188.31,188.21,2.67]
[1760983844643,4.7788,188.3,188.22,4.7806]
[1760983844848,2.82,188.29,188.23,2.67]
[1760983845950,4.7793,188.28,188.23,2.67]
[1760983846146,2.82,188.27,188.23,2.67]
[1760983846450,2.82,188.27,188.21,2.67]
[1760983847236,2.82,188.25,188.21,2.67]
[1760983854154,4.7798,188.26,188.21,2.67]
[1760983854855,2.82,188.25,188.21,2.67]
[1760983855054,2.82,188.29,188.21,2.67]
[1760983855264,2.82,188.29,188.19,2.67]
[1760983855558,2.82,188.28,188.19,2.67]
[1760983855856,2.82,188.28,188.2,7.4511]
[1760983856956,4.7796,188.27,188.2,7.4511]
[1760983857158,2.82,188.26,188.2,7.4511]
[1760983859058,2.82,188.26,188.21,2.7]
[1760983860751,2.82,188.26,188.22,7.7226229]
[1760983860948,2.82,188.26,188.23,5.0226229]
[1760983861149,2.82,188.26,188.24,5.0226229]
[1760983861353,2.82,188.26,188.25,5.0226229]
[1760983861750,2.82,188.26,188.22,2.7]
[1760983864870,2.82,188.26,188.16,9.88458298]
[1760983864871,2.9,188.25,188.2,4.89074952]
[1760983865269,2.9,188.23,188.18,4.89074952]
[1760983865471,2.9,188.22,188.17,4.89074952]
[1760983865772,2.9,188.22,188.16,4.89074952]
[1760983866769,2.9,188.22,188.15,7.59074952]
[1760983867171,2.9,188.22,188.15,2.7]
[1760983867771,7.6818,188.18,188.15,2.7]
[1760983868069,2.9,188.18,188.13,4.89074952]
[1760983868271,2.9,188.18,188.12,2.7]
[1760983868868,44.38,188.23,188.11,4.89074952]
[1760983868869,2.9,188.15,188.11,4.89074952]
[1760983869072,2.9,188.14,188.08,7.59074952]
[1760983869274,4.7834,188.12,188.08,2.7]
[1760983869472,2.9,188.11,188.06,4.89074952]
[1760983869976,2.9,188.09,188.06,2.7]
[1760983870269,2.9,188.12,188.06,2.7]
[1760983870867,7.6836,188.11,188.06,2.7]
[1760983871173,2.9,188.1,188.06,2.7]
[1760983871466,7.6841,188.09,188.06,2.7]
[1760983872267,7.6841,188.09,188.02,2.7]
[1760983872467,4.7844,188.08,188.02,2.7]
[1760983872875,4.7844,188.08,188.03,2.7]
[1760983873474,2.9,188.13,188.02,7.59074952]
[1760983873678,2.9,188.13,188.06,2.7]
[1760983875078,4.7834,188.12,188.06,2.7]
[1760983875468,4.7836,188.11,188.06,2.7]
[1760983875766,16.8,188.16,188.06,2.7]
[1760983875767,2.81,188.1,188.06,2.7]
[1760983875963,2.81,188.1,188.03,2.76]
[1760983876167,4.7838,188.1,188.03,2.76]
[1760983877373,4.7842,188.09,188.03,2.76]
[1760983877672,2.81,188.11,188.03,2.76]
[1760983878266,2.81,188.1,188.03,2.76]
[1760983878672,2.81,188.07,188.03,2.76]
[1760983879069,2.81,188.15,188.03,2.76]
[1760983880179,7.5934,188.12,188.04,2.76]
[1760983881383,7.5934,188.12,188.05,2.76]
[1760983881782,7.5936,188.11,188.05,2.76]
[1760983882273,4.7831,188.13,188.06,4.7847]
[1760983882479,2.81,188.15,188.07,2.76]
[1760983882883,7.5929,188.14,188.07,2.76]
[1760983883084,4.7829,188.14,188.07,2.76]
[1760983883284,2.81,188.13,188.07,2.76]
[1760983883780,7.5931,188.13,188.07,2.76]
[1760983884382,21.24,188.18,187.99,14.85661297]
[1760983884383,2.81,188.11,188.04,2.76]
[1760983885981,7.5937,188.11,188.04,4.7852]
[1760983886182,7.5937,188.11,188.05,2.76]
[1760983887273,7.5039,188.1,188.05,2.76]
[1760983889781,4.7841,188.09,188.05,2.76]
[1760983889982,2.72,188.11,188.03,2.83]
[1760983890685,7.5044,188.08,188.03,2.83]
[1760983891081,7.5044,188.08,188.04,2.83]
[1760983891276,4.7839,188.1,188.04,2.83]
[1760983891786,2.72,188.1,188.04,2.83]
[1760983892985,2.72,188.08,188.04,2.83]
[1760983893284,2.72,188.08,188.02,2.83]
[1760983894484,9.5647,188.16,188.02,2.83]
[1760983894485,4.784,188.1,188.02,7.6157]
[1760983894688,7.504,188.1,188.03,2.83]
[1760983894892,2.72,188.1,188.03,2.83]
[1760983895486,4.7841,188.09,188.03,7.6155]
[1760983895686,2.72,188.08,188.03,7.6155]
[1760983896494,2.72,188.08,188.04,2.83]
[1760983898593,2.72,188.07,188.04,2.83]
[1760983900993,7.5046,188.07,188.04,2.83]
[1760983901907,4.7846,188.07,188.01,4.7859]
[1760983902100,2.72,188.03,188.0,4.89074952]
[1760983902392,2.72,188.03,187.91,8.33561361]
[1760983902393,2.72,188.03,187.99,4.89074952]
[1760983902594,4.7854,188.04,188.0,2.83]
[1760983903400,7.5054,188.04,188.0,2.83]
[1760983903591,2.72,188.03,188.0,2.83]
[1760983903792,2.72,188.02,187.98,4.89074952]
[1760983903992,2.72,188.02,187.98,7.72074952]
[1760983904294,2.72,188.02,187.99,7.72074952]
[1760983904997,2.72,188.01,187.98,7.72074952]
[1760983905394,4.7859,188.02,187.98,7.72074952]
[1760983905596,4.7859,188.02,187.99,2.83]
[1760983905794,7.5059,188.02,187.97,4.89074952]
[1760983906106,2.72,188.01,187.98,2.83]
[1760983906299,2.72,188.05,187.99,2.83]
[1760983906596,8.33561361,188.14,188.0,2.83]
[1760983906597,2.72,188.1,188.0,2.83]
[1760983906793,2.72,188.09,188.0,2.83]
[1760983906994,2.72,188.05,188.0,2.83]
[1760983907194,2.72,188.05,187.99,4.89074952]
[1760983907605,7.5052,188.05,187.99,4.89074952]
[1760983908997,2.72,188.03,187.98,7.72074952]
[1760983909197,2.72,188.03,187.99,7.72074952]
[1760983909501,2.72,188.03,187.99,2.83]
[1760983910195,2.72,188.03,187.99,7.72074952]
[1760983910805,2.72,188.02,187.99,4.89074952]
[1760983911000,2.72,188.02,187.99,2.83]
[1760983911203,2.72,188.02,187.99,7.72074952]
[1760983911902,2.72,188.02,187.99,4.89074952]
[1760983912103,2.72,188.01,187.99,4.89074952]
[1760983912912,4.786,188.02,187.99,7.72074952]
[1760983913118,4.786,188.02,188.0,2.83]
[1760983916112,2.72,188.03,188.0,2.83]
[1760983919017,2.93,188.08,188.0,2.83]
[1760983919216,2.93,188.11,188.02,2.88]
[1760983919514,4.7844,188.08,188.03,2.88]
[1760983919709,7.7144,188.08,188.03,2.88]
[1760983920512,2.93,188.07,188.01,4.89074952]
[1760983920711,2.93,188.07,188.0,4.89074952]
[1760983921014,2.93,188.07,188.0,7.77074952]
[1760983921523,2.93,188.04,188.0,4.89074952]
[1760983922023,2.93,188.04,188.0,7.77074952]
[1760983922621,2.93,188.09,188.01,2.88]
[1760983923618,2.93,188.04,188.0,4.89074952]
[1760983923823,2.93,188.04,188.0,7.77074952]
[1760983924622,2.93,188.04,188.01,2.88]
[1760983925419,7.7154,188.04,188.01,2.88]
[1760983925617,7.7154,188.04,188.01,7.77074952]
[1760983925821,7.7154,188.04,188.01,2.88]
[1760983926018,4.7854,188.04,188.01,2.88]
[1760983926222,2.93,188.09,188.02,2.88]
[1760983927423,4.7844,188.07,188.02,2.88]
[1760983927621,2.93,188.06,188.02,2.88]
[1760983928416,2.93,188.04,188.0,7.77074952]
[1760983929015,7.7156,188.03,187.99,4.89074952]
[1760983929221,7.7156,188.03,188.0,7.77074952]
[1760983930523,4.785,188.05,188.0,4.89074952]
[1760983930729,7.715,188.05,188.01,2.88]
[1760983930929,2.93,188.05,188.01,2.88]
[1760983932030,4.7852,188.04,188.01,2.88]
[1760983932420,7.7152,188.04,188.01,2.88]
[1760983933128,4.7852,188.04,188.01,2.88]
[1760983934121,7.4752,188.04,188.01,2.88]
[1760983937732,4.7854,188.03,188.01,2.88]
[1760983939435,7.4754,188.03,188.0,7.79074952]
[1760983939627,7.4754,188.03,188.01,4.89074952]
[1760983939828,4.7854,188.03,188.01,7.79074952]
[1760983942433,2.69,188.02,188.01,4.89074952]
[1760983942628,4.7859,188.01,188.0,4.89074952]
[1760983942836,7.4759,188.01,188.0,4.89074952]
[1760983948542,4.7859,188.01,188.0,7.76074952]
[1760983949140,4.7859,188.01,188.0,4.89074952]
[1760983950436,7.6756,188.03,188.0,4.89074952]
[1760983950738,2.89,188.02,188.0,4.89074952]
[1760983951343,7.6758,188.02,188.0,4.89074952]
[1760983956553,4.7858,188.02,188.01,2.87]
[1760983957650,4.7858,188.02,188.01,7.801952]
[1760983958350,4.7858,188.02,188.01,2.87]
[1760983960651,2.89,188.05,188.01,2.87]
[1760983960847,2.89,188.05,188.02,4.93144879]
[1760983961052,2.89,188.05,188.02,7.80144879]
[1760983961960,4.7855,188.03,188.02,4.93144879]
[1760983962467,4.7855,188.03,188.02,7.80144879]
[1760983963262,15.67091549,188.1,188.03,2.87]
[1760983963468,6.80005581,188.12,188.04,2.87]
[1760983963664,2.89,188.11,188.04,2.87]
[1760983963868,18.58782764,188.11,188.04,2.87]
[1760983964056,2.89,188.1,188.03,4.93021675]
[1760983964256,2.89,188.09,188.01,4.93021675]
[1760983964866,2.89,188.05,187.98,2.87]
[1760983965067,7.676,188.01,187.98,2.87]
[1760983965268,2.89,188.01,187.98,2.87]
[1760983965772,4.7862,188.0,187.98,2.87]
[1760983973873,4.7858,188.02,187.98,2.87]
[1760983975676,4.786,188.01,187.98,2.87]
[1760983977371,4.7862,188.0,187.98,2.87]
[1760983977574,4.7862,188.0,187.96,2.81]
[1760983978278,7.5962,188.0,187.96,2.81]
[1760983978478,4.7865,187.99,187.96,2.81]
[1760983981477,2.81,188.0,187.94,2.81]